Cogmind - Beta 13 @@@ ROGUE MODE // 2024.06.06 @ 20:27:13 Player: Occam Result: Destroyed by Lightning with EMDS Performance ------------- Evolutions (5) 2500 Regions Visited (21) 4200 Robots Destroyed (330) 1650 Value Destroyed (11032) 11032 Prototype IDs (236) 4720 Alien Tech Used (0) 0 Bonus (9387) 9387 TOTAL SCORE: 33489 Bonus ------- High Alert Combat Kills 142 Follower Combat Kills 1821 Network Hubs Disabled 400 Met Data Miner 300 Used Data Conduit 3000 Destroyed Z-Imprinter 1000 Triggered Deep Caves Wall 500 Exposed GOLEM Chamber 500 Met Zhirov 300 Built Enhanced Grunts 300 A7 Reached Mainframe 300 Met R17 at Cetus 500 Pursued by Intercept 500 Friendly Fire -176 Cogmind --------- Core Integrity 0/1000 Matter 290/300 Energy 100/100 System Corruption 19% Temperature Cool (0) Movement Core (2050) Ox40 Location -5/Hub_04(d) Parts ------- > --- POWER (3) -------- Assembled Flux Generator > --- PROPULSION (2) --- (None) > --- UTILITY (9) ------ Huge Storage Unit Improved Signal Interpreter GOLEM Unit > --- WEAPON (3) ------- (None) > --- INVENTORY (25) --- Experimental Heat Sink Zionite Biocell (600) Zionite Biocell (600) Zionite Biocell (600) Zionite Biocell (600) Structural Scanner Weapon Mount Weapon Mount Improved Utility Shielding Hardened Heavy Armor Plating Powered Armor Authchip [Power] Authchip [Device] Authchip [Device] Improved Dynamic Insulation System Advanced System Restoration Module GOLEM Unit GOLEM Unit Rocket Array Datajack Improved Plasma Cutter Peak State ------------ > --- POWER ------------ Hybrid Deuterium Engine Assembled Flux Generator > --- PROPULSION ------- Assembled Alloy Leg Assembled Alloy Leg > --- UTILITY ---------- Huge Storage Unit Assembled Biocell Array Experimental Sensor Array Improved Signal Interpreter Assembled Alloy Armor Makeshift Hacking Suite Improved System Shield GOLEM Unit > --- WEAPON ----------- Assembled Focal Cannon Assembled Focal Cannon Assembled Focal Cannon > --- INVENTORY -------- Experimental Heat Sink Zionite Biocell Zionite Biocell Zionite Biocell Zionite Biocell Structural Scanner Weapon Mount Weapon Mount Improved Utility Shielding Improved Medium Armor Plating Powered Armor Powered Armor Improved System Shield Authchip [Power] Authchip [Device] Authchip [Device] Improved Dynamic Insulation System Improved System Restoration Module GOLEM Unit GOLEM Unit Rocket Array Datajack RU-N14's Throwing Claymores [Rating: 135] Favorites ----------- Power Assembled Flux Generator Engine Ion Engine Power Core Fission Core Reactor Assembled Flux Generator Propulsion Assembled Alloy Leg Treads Light Treads Leg Assembled Alloy Leg Wheel Compact Wheel Flight Unit Improved Flight Unit Utility Huge Storage Unit Device Structural Scanner Storage Huge Storage Unit Processor Improved Signal Interpreter Hackware Hacking Suite Protection Hardened Heavy Armor Plating Weapon Assembled Focal Cannon Energy Gun Spread Laser Energy Cannon Assembled Focal Cannon Ballistic Gun Coil Gun Ballistic Cannon Gauss Cannon Launcher Long-range Missile Launcher Special Weapon RU-N14's Throwing Claymores Impact Weapon Great Maul Slashing Weapon Axe Special Melee Weapon Datajack Build | -11 -10 -10 -9 -9 -8 -7 -7 -7 -7 -6 -6 -6 -6 -6 -6 -5 -5 -5 -5 -5 -5 ------- Run | Yrd Mat Min Mat Min Mat Fac Low Low Dat Pro Fac Low Low Zio Dee Pro Fac Ext Cet Arc Hub Slots Evolved 10 | . . . 2 . 2 2 . . . . 2 . . . . . 2 . . . . Power 2 | . . . . . . . . . . . 1 . . . . . 1 . . . . Propulsion . | . . . . . . . . . . . . . . . . . . . . . . Utility 7 | . . . 2 . 1 2 . . . . 1 . . . . . 1 . . . . Weapon 1 | . . . . . 1 . . . . . . . . . . . . . . . . Parts Attached 387 | 1 24 14 63 6 35 105 4 7 14 4 15 5 3 6 31 . 25 16 1 1 7 Power 24 | . 1 1 5 . 2 5 . 1 . . 5 . . . 1 . 2 . . . 1 Engine 20 | . 1 1 5 . 2 4 . 1 . . 4 . . . . . 2 . . . . Core 2 | . . . . . . 1 . . . . 1 . . . . . . . . . . Reactor 2 | . . . . . . . . . . . . . . . 1 . . . . . 1 Propulsion 90 | . 12 8 28 2 12 22 . . 1 . 2 1 1 1 . . . . . . . Treads 46 | . 6 3 15 1 6 12 . . . . 1 1 1 . . . . . . . . Leg . | . . . . . . . . . . . . . . . . . . . . . . Wheel 43 | . 6 5 12 1 6 10 . . 1 . 1 . . 1 . . . . . . . Hover . | . . . . . . . . . . . . . . . . . . . . . . Flight 1 | . . . 1 . . . . . . . . . . . . . . . . . . Utility 155 | 1 6 2 16 2 12 38 1 1 7 1 6 2 1 . 21 . 19 12 1 1 5 Device 96 | 1 4 2 13 2 7 24 1 1 5 . 2 1 1 . 9 . 9 11 . 1 2 Storage 5 | . 1 . . . 1 1 . . . . . . . . 2 . . . . . . Processor 6 | . 1 . . . . 3 . . . . . 1 . . 1 . . . . . . Hackware 11 | . . . . . 1 2 . . . . 2 . . . . . 5 . . . 1 Protection 37 | . . . 3 . 3 8 . . 2 1 2 . . . 9 . 5 1 1 . 2 Artifact . | . . . . . . . . . . . . . . . . . . . . . . Weapon 118 | . 5 3 14 2 9 40 3 5 6 3 2 2 1 5 9 . 4 4 . . 1 Energy Gun 12 | . 4 2 3 . 1 . . . . . . . . . 2 . . . . . . Energy Cannon 5 | . . . 1 . . . . . . 2 . . . . 2 . . . . . . Ballistic Gun 32 | . . . 3 1 4 14 1 2 2 1 1 1 . 1 1 . . . . . . Ballistic Cannon 23 | . 1 . 6 . 3 10 . 1 . . . . . 2 . . . . . . . Launcher 9 | . . . . 1 . 1 1 1 . . . 1 1 . 2 . 1 . . . . Special Weapon 5 | . . . . . . . . . . . . . . 1 . . 3 . . . 1 Impact Weapon 19 | . . 1 . . 1 11 1 . 2 . 1 . . 1 1 . . . . . . Slashing Weapon 2 | . . . . . . . . 1 1 . . . . . . . . . . . . Piercing Weapon . | . . . . . . . . . . . . . . . . . . . . . . Special Melee Weapon 11 | . . . 1 . . 4 . . 1 . . . . . 1 . . 4 . . . Unidentified Prototypes 17 | . 1 . 4 . 1 4 . . . . . . . 1 6 . . . . . . Corrupted Parts 2 | . . . . . . . . . . 2 . . . . . . . . . . . System Corruption 20 | . . . . . . . . . . 20 . . . . . . . . . . . Parts Lost 63 | . 1 2 6 . 7 15 . . 3 . 2 . 1 . 4 . 4 4 . . 14 Power 5 | . . 1 1 . . . . . . . . . . . . . . . . . 3 Propulsion 6 | . . 1 . . . 1 . . 1 . . . 1 . . . . . . . 2 Utility 33 | . . . 3 . 3 9 . . 2 . 1 . . . 4 . 3 3 . . 5 Weapon 19 | . 1 . 2 . 4 5 . . . . 1 . . . . . 1 1 . . 4 Highest Loss Streak 14 | . 1 1 2 . 4 3 . . 2 . 2 . 1 . 3 . 1 3 . . 14 To Critical Strikes . | . . . . . . . . . . . . . . . . . . . . . . Average Slot Usage (%) 92 | . 99 99 99 100 99 96 91 91 91 92 92 93 92 85 83 93 90 85 82 81 82 Engine 8 | . 14 13 11 11 9 6 7 7 7 7 8 13 13 13 4 . 5 5 5 5 4 Reactor 1 | . . . . . . . . . . . . . . . 3 6 5 4 5 5 5 Treads 5 | . 15 14 11 11 9 7 7 7 5 . 4 6 11 . . . . . . . . Leg 3 | . . . . . . . . . . . . . . . 7 13 11 11 11 11 10 Wheel 5 | . 11 13 10 11 8 6 7 7 6 7 6 6 1 6 2 . . . . . . Device 17 | . 14 13 29 22 20 20 16 22 21 27 19 13 19 20 11 13 6 11 15 11 15 Storage 9 | . 14 14 11 11 9 7 7 7 7 7 6 6 6 6 9 13 11 11 11 11 11 Processor 4 | . . . . . . 7 7 7 6 . . 4 6 6 6 6 5 5 5 5 5 Hackware 4 | . . . . . 5 2 . . . . 12 7 6 6 6 6 16 8 . . 4 Protection 7 | . . . 2 11 9 10 13 7 11 18 9 13 6 6 8 13 7 4 6 11 4 Energy Gun 2 | . 20 28 1 . 1 . . . . . . . . . . . . . . . . Energy Cannon 5 | . . . . . . . . . . . 12 6 1 . 11 20 14 16 17 16 14 Ballistic Gun 6 | . 7 . 3 21 21 10 1 5 7 15 . 12 13 10 2 . . . . . . Ballistic Cannon 3 | . . . 16 . 3 7 15 9 7 7 . . . 1 1 . . . . . . Impact Weapon 1 | . . . . . . 3 . 4 2 . 5 . . 3 . . . . . . . Naked Turns . | . . . . . . . . . . . . . . . . . . . . . . Heaviest Build 205 | 14 92 92 98 96 112 136 138 133 135 137 149 147 148 149 175 175 183 199 205 205 199 Greatest Support 60 | 20 40 16 40 16 43 23 12 12 28 28 28 16 50 28 60 60 60 60 60 60 60 Greatest Overweight (x) 52 | . 5 5 6 5 6 11 11 11 11 4 9 9 9 5 5 2 3 6 3 3 52 Average Overweight (x) 5 | . 4 5 5 5 5 7 10 10 7 4 6 9 4 4 3 2 2 3 3 3 3 Largest Inventory Capacity 25 | 8 25 25 25 25 25 25 25 25 25 25 25 25 25 25 25 25 25 25 25 25 25 Average Capacity 24 | 8 23 25 25 25 25 25 25 25 25 25 25 25 25 25 24 25 25 25 25 25 25 Most Carried 25 | 6 25 25 25 25 25 25 25 25 25 25 25 25 25 25 25 25 25 25 25 25 25 Average Carried 23 | 5 19 24 24 24 24 24 24 24 24 24 24 23 24 24 17 25 23 24 24 25 24 Final Capacity 25 | 8 25 25 25 25 25 25 25 25 25 25 25 25 25 25 25 25 25 25 25 25 25 Final Carried 25 | 5 25 25 25 25 25 25 25 25 24 25 24 25 25 25 25 25 25 25 25 25 24 Class Distribution -------------------- 17% | Scavenger-Mutant 11% | Mutant 10% | Tank 10% | Skirmisher 8% | Trapper-Mutant 7% | Golem 5% | Commander-Golem 5% | Trapper-Tank 4% | Hacker-Golem 4% | Scavenger-Tank 3% | Scavenger-Skirmisher 3% | Assassin Dominant Class ---------------- Mutant | -10/Materials Mutant | -10/Mines Scavenger-Mutant | -9/Materials Scavenger-Mutant | -9/Mines Tank | -8/Materials Trapper-Mutant | -7/Factory Trapper-Tank | -7/Lower Caves Trapper-Mutant | -7/Lower Caves Trapper-Skirmisher | -7/Data Miner Tank | -6/Proximity Caves Scavenger-Mutant | -6/Factory Scavenger-Skirmisher | -6/Lower Caves Skirmisher | -6/Lower Caves Assassin | -6/Zion Tank | -6/Deep Caves Skirmisher | -5/Proximity Caves Hacker-Tank | -5/Factory Commander-Golem | -5/Extension Commander-Golem | -5/Cetus Golem | -5/Archives Golem | -5/Hub_04(d) Resources | -11 -10 -10 -9 -9 -8 -7 -7 -7 -7 -6 -6 -6 -6 -6 -6 -5 -5 -5 -5 -5 -5 ----------- Run | Yrd Mat Min Mat Min Mat Fac Low Low Dat Pro Fac Low Low Zio Dee Pro Fac Ext Cet Arc Hub Matter Collected 8629 | 219 443 172 1392 192 1155 2904 144 346 140 144 159 138 70 10 591 . 255 145 10 . . Remotely 786 | . . . 646 . . . 20 120 . . . . . . . . . . . . . Salvage Created 13568 | 150 661 510 1732 112 1286 2909 124 422 306 90 684 169 16 . 858 76 1166 2297 . . . Parts 646 | 10 54 37 119 6 71 114 4 19 9 3 34 5 1 . 15 10 58 77 . . . Haulers Intercepted 12 | . 2 . 5 . 1 2 . . . . . . . . . . 1 1 . . . Recyclers Shooed 15 | 1 . 1 2 . 2 5 . . . . 1 . . . . . . 1 . . 2 Parts Field Recycled 5 | . . . . . . 5 . . . . . . . . . . . . . . . Retrieved Matter 41 | . . . . . . 41 . . . . . . . . . . . . . . . Parts Self-Destructed 39 | . . . . . . . 3 12 . 3 . 7 4 . . 10 . . . . . Prevented . | . . . . . . . . . . . . . . . . . . . . . . Kills | -11 -10 -10 -9 -9 -8 -7 -7 -7 -7 -6 -6 -6 -6 -6 -6 -5 -5 -5 -5 -5 -5 ------- Run | Yrd Mat Min Mat Min Mat Fac Low Low Dat Pro Fac Low Low Zio Dee Pro Fac Ext Cet Arc Hub Combat Hostiles Destroyed 248 | . 13 15 39 6 23 29 3 8 4 3 6 4 3 . 43 3 20 25 . 1 . Melee 1 | . . . . . . . . . 1 . . . . . . . . . . . . Guns 84 | . 12 15 12 3 19 16 . 2 . 3 . 1 . . 1 . . . . . . Cannons 95 | . 1 . 27 . 4 13 . 2 . . 6 . . . 1 3 12 25 . 1 . AOE 63 | . . . . 3 . . 3 4 . . . 3 3 . 39 . 8 . . . . Classes Destroyed 22 | 2 7 2 3 . 1 1 . 1 . . . . . . 3 1 . 1 . . . Worker 18 | . 1 1 4 . 2 2 . . . . 2 . . . . . 4 2 . . . Builder 17 | . 2 . 5 1 . 7 . . . . . . . . . . 2 . . . . Tunneler 10 | 3 2 1 1 . . 2 . . . . . . . . . . . 1 . . . Hauler 12 | . 2 . 5 . 1 2 . . . . . . . . . . 1 1 . . . Recycler 31 | 1 1 2 2 . 1 19 . . . . 2 . . . . . . 3 . . . Mechanic 2 | . 1 . . . . 1 . . . . . . . . . . . . . . . Operator 11 | . . . 3 . 1 3 . . . . 2 . . . . . 1 1 . . . Drone 2 | . . . . . . . . . . . . . . . . 2 . . . . . Watcher 21 | . 3 . 5 . 3 3 . . . . 3 . . . . . 2 2 . . . Swarmer 37 | . 6 6 3 . 3 4 . . . 3 . 3 3 . . . 5 1 . . . Grunt 89 | . 7 4 24 3 12 13 3 . . . 1 1 . . . . 7 14 . . . Brawler 3 | . . . 1 . . . . . . . . . . . . . . 2 . . . Duelist 2 | . . . 1 . . 1 . . . . . . . . . . . . . . . Sentry 34 | . . 2 10 . 7 4 . 1 . . 2 . . . . . 2 5 . 1 . Hunter 8 | . . . . . 1 . . 2 . . 1 . . . . 1 2 1 . . . Programmer 12 | . . . . . . 7 . 1 . . 2 . . . . . 2 . . . . Behemoth 2 | . . . . . . . . . . . . . . . . . . 2 . . . Enhanced Grunt 4 | . . . . . . . . . 4 . . . . . . . . . . . . Tracker 1 | . . . . . . . . . . . . . . . . . 1 . . . . Combat Programmer 1 | . . . . . . . . . . . . . . . . . 1 . . . . Z-Light 4 | . . . . . . . . . . . . . . . 4 . . . . . . Decomposer 2 | . . . . . . . . . . . . 2 . . . . . . . . . Assembler 2 | . . . . . . . . . . . . . . . 2 . . . . . . Assembled 43 | . . 3 . 3 . . . . . . . . . . 37 . . . . . . Golem 2 | . . . . . . . . . . . . . . . 2 . . . . . . Thug 3 | . . . . . . . . 3 . . . . . . . . . . . . . Savage 1 | . . . . . . . . 1 . . . . . . . . . . . . . Butcher 1 | . . . . . . . . 1 . . . . . . . . . . . . . Mutant 1 | . . . . . . . . 1 . . . . . . . . . . . . . Best Kill Streak 37 | 2 4 6 4 3 4 6 3 4 2 3 2 3 3 . 37 2 7 5 . 1 . Combat Bots Only 35 | . 4 6 4 3 4 4 3 4 2 3 1 3 3 . 35 2 7 5 . 1 . Max Kills in Single Turn 28 | 1 1 2 1 2 1 2 2 2 1 1 1 2 2 . 28 1 5 2 . 1 . Gunslinging 1 | . . 1 . . . 1 . . . . . . . . . . . . . . . Exploded 28 | . . . . 2 . . 2 2 . . . 2 2 . 28 . 5 . . . . Melee 1 | . . . . . . . . . 1 . . . . . . . . . . . . Uniques/NPCs Destroyed 2 | . . . . . . . . . 1 . . . . . 1 . . . . . . Data Miner (-7/Data Miner) Z-Imprinter (-6/Deep Caves) Combat | -11 -10 -10 -9 -9 -8 -7 -7 -7 -7 -6 -6 -6 -6 -6 -6 -5 -5 -5 -5 -5 -5 -------- Run | Yrd Mat Min Mat Min Mat Fac Low Low Dat Pro Fac Low Low Zio Dee Pro Fac Ext Cet Arc Hub Hostile Shots Fired 1404 | . 43 43 153 9 152 321 2 71 13 30 77 10 11 . 85 . 119 113 . 2 150 Missed 391 | . 14 13 45 3 35 99 . 23 2 10 31 4 3 . 26 . 23 31 . . 29 Damage Taken 18311 | . 344 386 1351 71 1927 2537 28 708 448 322 720 120 89 . 1556 . 1755 1813 . 292 3844 Core 2596 | . 131 86 346 14 341 190 . 42 87 64 54 . 10 . 206 . 195 89 . . 741 Absorbed by Shields 495 | . . . . . . . . . . . . . 34 . 406 . . 55 . . . Redirected to Shielding 182 | . . . . . . . . . . . . . . . 182 . . . . . . Ignored by Resistances 344 | . . . . . . 12 . . . . . . . . . . 332 . . . . Regen/Repaired (Parts) 150 | . . . 12 . . 124 . . . . . . . . . . 14 . . . . Core Remaining (%) 45 | 100 . 13 . 10 38 . . . . 45 . . . . . 68 . . . . . Volleys Fired 746 | 9 64 27 133 13 88 129 4 18 . 10 25 9 3 . 51 3 65 62 2 2 29 Largest 3 | 2 2 2 2 2 3 3 2 3 . 3 3 3 1 . 3 3 3 3 3 3 3 Hottest 228 | 70 130 130 130 46 111 140 96 114 . 114 228 150 43 . 132 75 75 75 75 75 75 Shots Fired 1662 | 18 124 56 261 23 258 361 6 35 . 24 46 15 3 . 73 9 129 170 4 6 41 Gun 853 | 18 120 56 79 20 231 254 . 18 . 20 1 8 . . 28 . . . . . . Cannon 777 | . 4 . 182 . 27 107 4 11 . 4 45 4 . . 36 9 123 170 4 6 41 Launcher 27 | . . . . 3 . . 2 6 . . . 3 3 . 9 . 1 . . . . Special 5 | . . . . . . . . . . . . . . . . . 5 . . . . Kinetic 967 | 9 49 . 210 20 241 354 4 29 . 24 2 8 . . 17 . . . . . . Thermal 641 | 9 75 56 51 . 17 7 . . . . 44 4 . . 25 9 123 170 4 6 41 Explosive 32 | . . . . 3 . . 2 6 . . . 3 3 . 9 . 6 . . . . Electromagnetic 22 | . . . . . . . . . . . . . . . 22 . . . . . . Robot Hit Streak 46 | 6 12 9 21 5 26 23 4 8 . 4 8 9 1 . 16 2 18 46 15 19 20 Robot Miss Streak 9 | 2 6 9 5 4 4 5 3 4 . 5 1 2 2 . 5 2 3 2 . . 2 Penetration Max 1 | . . . . . . . . . . 1 . . . . . . . . . . . Secondary Targets 9 | . 1 2 1 . 2 3 . . . . . . . . . . . . . . . Max Gunslinging Chain 1 | . 1 1 1 . 1 1 . . . . . . . . . . . . . . . Shots Hit Robots 1147 | 11 93 51 178 10 169 246 3 24 14 10 28 10 1 . 50 4 66 151 3 4 21 Core Hits 692 | 6 64 75 113 11 57 88 8 24 3 5 14 7 5 . 118 2 40 46 . 1 5 Critical Kills 9 | . . . . . . 3 . 2 1 2 . . . . 1 . . . . . . Critical Parts Destroyed 10 | . . . . . 1 5 . . 3 1 . . . . . . . . . . . Critical Strikes 43 | 2 4 . 6 . 6 13 . 2 4 4 . . . . 2 . . . . . . Burn 9 | 2 4 . . . 3 . . . . . . . . . . . . . . . . Destroy 10 | . . . 1 . 1 2 . 2 . 3 . . . . 1 . . . . . . Blast 13 | . . . 5 . 2 5 . . . 1 . . . . . . . . . . . Corrupt 1 | . . . . . . . . . . . . . . . 1 . . . . . . Smash 10 | . . . . . . 6 . . 4 . . . . . . . . . . . . Melee Attacks 142 | . . 1 . . 1 43 1 4 30 . 15 . . 21 2 . . 24 . . . Impact 96 | . . 1 . . 1 43 1 . 13 . 15 . . 21 1 . . . . . . Slashing 20 | . . . . . . . . 4 16 . . . . . . . . . . . . Piercing . | . . . . . . . . . . . . . . . . . . . . . . Sneak Attacks 55 | . . . . . . 21 . 4 2 . 3 . . . 1 . . 24 . . . Combat Hostiles . | . . . . . . . . . . . . . . . . . . . . . . Follow-up Attacks 1 | . . . . . . . . . 1 . . . . . . . . . . . . Damage Inflicted 36787 | 129 1051 600 3557 339 2824 6708 184 939 629 131 1425 714 270 . 4488 164 4819 6605 . 201 1010 Guns 9097 | 129 979 600 909 90 2405 3020 . 48 . 66 . 152 . . 699 . . . . . . Cannons 17905 | . 72 . 2648 . 419 1613 27 167 . 65 962 85 . . 391 164 3476 6605 . 201 1010 Explosions 6390 | . . . . 249 . . 157 504 . . 84 477 270 . 3398 . 1251 . . . . Melee 3303 | . . . . . . 2075 . 220 629 . 379 . . . . . . . . . . Ramming . | . . . . . . . . . . . . . . . . . . . . . . Kinetic 11142 | 40 295 . 2951 90 2568 4565 27 215 . 131 . 152 . . 108 . . . . . . Thermal 16015 | 89 756 600 606 . 256 68 . . . . 1046 145 . . 679 164 3790 6605 . 201 1010 Explosive 5932 | . . . . 249 . . 157 504 . . . 417 270 . 3398 . 937 . . . . Electromagnetic 303 | . . . . . . . . . . . . . . . 303 . . . . . . Impact 2979 | . . . . . . 2075 . . 525 . 379 . . . . . . . . . . Slashing 416 | . . . . . . . . 220 104 . . . . . . . 92 . . . . Piercing . | . . . . . . . . . . . . . . . . . . . . . . Highest Corruption 20 | . . 4 . . . 1 . . . 20 1 . . . . . 2 . . . 19 Average Corruption 3 | . . 4 . . . 1 . . . 10 1 . . . . . 1 . . . 3 Corruption Purged 7 | . . . . . . 3 . . . . 1 . . . . . 2 . . . 1 Corruption Blocked . | . . . . . . . . . . . . . . . . . . . . . . Effects 16 | . . 11 . . . 1 . . . . . . . . . . . . . . 4 Message Errors 4 | . . 1 . . . 1 . . . . . . . . . . . . . . 2 Matter Fused 2 | . . 2 . . . . . . . . . . . . . . . . . . . Heat Flow Errors 3 | . . 3 . . . . . . . . . . . . . . . . . . . Energy Discharges 2 | . . 1 . . . . . . . . . . . . . . . . . . 1 Data Loss (minor) 2 | . . 2 . . . . . . . . . . . . . . . . . . . Misfires 3 | . . 2 . . . . . . . . . . . . . . . . . . 1 Overload Shots . | . . . . . . . . . . . . . . . . . . . . . . Overflow Damage 2617 | . . . 18 . 22 1033 5 . 186 9 376 54 35 . 89 18 319 408 . . 45 Projectiles 795 | . . . 18 . 22 11 . . . 9 71 . . . . 18 193 408 . . 45 Explosions 403 | . . . . . . . 5 . . . 94 54 35 . 89 . 126 . . . . Melee 1419 | . . . . . . 1022 . . 186 . 211 . . . . . . . . . . Knockbacks 53 | . 1 . 18 . 6 20 1 . 1 2 4 . . . . . . . . . . Impact 12 | . . . . . . 8 . . 1 . 3 . . . . . . . . . . Kinetic 35 | . 1 . 14 . 5 12 1 . . 2 . . . . . . . . . . . Secondary 6 | . . . 4 . 1 . . . . . 1 . . . . . . . . . . Self-Inflicted Damage 520 | . . . . . . . 13 68 . . 273 24 . . . . 142 . . . . Shots 14 | . . . . . . . 1 4 . . 4 1 . . . . 4 . . . . Rammed . | . . . . . . . . . . . . . . . . . . . . . . Targets Rammed . | . . . . . . . . . . . . . . . . . . . . . . Kicked . | . . . . . . . . . . . . . . . . . . . . . . Crushed . | . . . . . . . . . . . . . . . . . . . . . . Highest Temperature 579 | 100 276 365 446 16 579 240 114 340 . . 240 246 60 . 306 . 43 48 18 57 55 Average Temperature 90 | 43 82 124 89 8 103 52 48 121 . . 87 116 32 . 132 . 16 19 12 32 17 Received Heat Transfer 3940 | . 150 81 594 95 738 855 27 57 . . 78 18 . . 278 . 180 372 . 9 408 Effects 28 | . 2 4 4 . 13 . . . . . 1 1 . . 3 . . . . . . Shutdowns 3 | . . . 1 . 2 . . . . . . . . . . . . . . . . Energy Bleed 5 | . . 1 . . 2 . . . . . 1 . . . 1 . . . . . . Interference 12 | . 2 3 2 . 2 . . . . . . 1 . . 2 . . . . . . Matter Decay 2 | . . . . . 2 . . . . . . . . . . . . . . . . Short Circuit 2 | . . . 1 . 1 . . . . . . . . . . . . . . . . Damage (major) 3 | . . . . . 3 . . . . . . . . . . . . . . . . Damage (core) 1 | . . . . . 1 . . . . . . . . . . . . . . . . Siege Activations . | . . . . . . . . . . . . . . . . . . . . . . Robots Corrupted 2 | . . . . . . . . . . . . . . . 2 . . . . . . Combat Hostiles 2 | . . . . . . . . . . . . . . . 2 . . . . . . Parts Fried 24 | . . . . . . 18 . . 3 . 2 . . . . . . 1 . . . Impact Corruptions 38 | . . . . . . 25 . . 5 . 8 . . . . . . . . . . Robots Melted . | . . . . . . . . . . . . . . . . . . . . . . Combat Hostiles . | . . . . . . . . . . . . . . . . . . . . . . Parts Melted 12 | 1 5 . 1 . 1 . . . . . . . . . . . . 4 . . . Heat Transferred 11526 | 407 2028 745 770 . 740 148 . . . . 100 100 . . 654 75 1875 3350 . 100 434 Parts Sabotaged . | . . . . . . . . . . . . . . . . . . . . . . Parts Stolen 1 | . . . . . . . 1 . . . . . . . . . . . . . . Parts Stripped . | . . . . . . . . . . . . . . . . . . . . . . Power Chain Reactions 3 | . . . . . . . . . . . 2 1 . . . . . . . . . Alert | -11 -10 -10 -9 -9 -8 -7 -7 -7 -7 -6 -6 -6 -6 -6 -6 -5 -5 -5 -5 -5 -5 ------- Run | Yrd Mat Min Mat Min Mat Fac Low Low Dat Pro Fac Low Low Zio Dee Pro Fac Ext Cet Arc Hub Peak Influence 700 | 20 170 213 409 177 325 305 . . . . 229 . . . . . 700 670 562 382 52 Initial 375 | . 13 1 . 74 . 147 . . . . . . . . . . . 323 375 144 . Average 144 | 12 40 65 222 79 97 119 . . . . 61 . . . . . 192 211 489 227 13 Maximum Alert Level 3 | . . 1 2 . 1 1 . . . . 1 . . . . . 3 2 2 1 . Low Security (%) 73 | 100 100 96 32 100 82 91 . . . . 94 . . . . . 74 49 . 57 100 Level 1 21 | . . 3 67 . 17 8 . . . . 5 . . . . . 7 34 16 42 . Level 2 5 | . . . . . . . . . . . . . . . . . 17 16 83 . . Level 3 . | . . . . . . . . . . . . . . . . . . . . . . Level 4 . | . . . . . . . . . . . . . . . . . . . . . . Level 5 . | . . . . . . . . . . . . . . . . . . . . . . High Security . | . . . . . . . . . . . . . . . . . . . . . . Max Security . | . . . . . . . . . . . . . . . . . . . . . . Squads Dispatched 45 | . 3 . 7 . 6 12 . . . . 4 . . . . . 8 3 . . 2 Investigation 18 | . 3 . 3 . 1 4 . . . . 1 . . . . . 4 1 . . 1 Extermination 9 | . . . . . . 6 . . . . 1 . . . . . 2 . . . . Reinforcement 12 | . . . 4 . 2 2 . . . . 1 . . . . . . 2 . . 1 Assault . | . . . . . . . . . . . . . . . . . . . . . . Garrison 4 | . . . . . 3 . . . . . 1 . . . . . . . . . . Intercept 2 | . . . . . . . . . . . . . . . . . 2 . . . . Searches Triggered . | . . . . . . . . . . . . . . . . . . . . . . Construction Impeded 3 | . . . 1 . . . . . . . . . . . . . . 1 . . 1 Haulers Reinforced . | . . . . . . . . . . . . . . . . . . . . . . Active Scanning Responses . | . . . . . . . . . . . . . . . . . . . . . . Cargo Convoy Interrupts . | . . . . . . . . . . . . . . . . . . . . . . Stealth | -11 -10 -10 -9 -9 -8 -7 -7 -7 -7 -6 -6 -6 -6 -6 -6 -5 -5 -5 -5 -5 -5 --------- Run | Yrd Mat Min Mat Min Mat Fac Low Low Dat Pro Fac Low Low Zio Dee Pro Fac Ext Cet Arc Hub Distress Signals 14 | . . . 3 1 3 . . . . . 1 . . . . . 1 2 2 . 1 Communications Jammed . | . . . . . . . . . . . . . . . . . . . . . . Distress Signals . | . . . . . . . . . . . . . . . . . . . . . . Times Spotted 337 | . 19 16 46 6 33 44 2 8 4 4 11 4 2 . 47 1 20 41 10 1 18 Peak Tracking Total 37 | . 4 6 4 3 5 4 1 4 2 4 3 3 3 . 37 1 6 9 5 1 12 Tactical Retreats 9 | . 1 . 1 . 1 1 . . . 1 . . . . . . . 2 . . 2 Traps | -11 -10 -10 -9 -9 -8 -7 -7 -7 -7 -6 -6 -6 -6 -6 -6 -5 -5 -5 -5 -5 -5 ------- Run | Yrd Mat Min Mat Min Mat Fac Low Low Dat Pro Fac Low Low Zio Dee Pro Fac Ext Cet Arc Hub Traps Triggered 12 | . 4 . 1 . 1 3 . . . . . . . . . . 1 2 . . . Indirectly . | . . . . . . . . . . . . . . . . . . . . . . Trap Hack Attempts 131 | . . . 36 . . 95 . . . . . . . . . . . . . . . Triggered . | . . . . . . . . . . . . . . . . . . . . . . Disarmed 1 | . . . . . . 1 . . . . . . . . . . . . . . . Reprogrammed 11 | . . . 1 . . 10 . . . . . . . . . . . . . . . Reused 7 | . . . . . . . . . 2 . . . . . 5 . . . . . . Traps Extracted 10 | . . . 1 . . 9 . . . . . . . . . . . . . . . Installed 10 | . . . . . . . . . 4 . . . . . 6 . . . . . . Triggered 2 | . . . . . . . 2 . . . . . . . . . . . . . . Most Traps Carried 10 | . . . 1 1 1 10 10 10 10 6 6 6 6 6 6 . . . . . . Machines | -11 -10 -10 -9 -9 -8 -7 -7 -7 -7 -6 -6 -6 -6 -6 -6 -5 -5 -5 -5 -5 -5 ---------- Run | Yrd Mat Min Mat Min Mat Fac Low Low Dat Pro Fac Low Low Zio Dee Pro Fac Ext Cet Arc Hub Machines Disabled 44 | . . . 1 1 2 1 1 . . . 9 . . . 4 . 20 4 1 . . Max in Single Turn 6 | . . . 1 1 1 1 1 . . . 5 . . . 1 . 6 1 1 . . Garrison Access 2 | . . . . . 1 . . . . . . . . . . . 1 . . . . Network Hub 2 | . . . . . . . . . . . . . . . . . . . . . 2 Machines Repaired . | . . . . . . . . . . . . . . . . . . . . . . Machines Dismantled 1 | . . . . . . . . . . . . . . . . . . . . . 1 Machines Sabotaged . | . . . . . . . . . . . . . . . . . . . . . . Overloaded Fab Kills . | . . . . . . . . . . . . . . . . . . . . . . Hacking | -11 -10 -10 -9 -9 -8 -7 -7 -7 -7 -6 -6 -6 -6 -6 -6 -5 -5 -5 -5 -5 -5 --------- Run | Yrd Mat Min Mat Min Mat Fac Low Low Dat Pro Fac Low Low Zio Dee Pro Fac Ext Cet Arc Hub Machines Accessed 82 | . 9 . 12 . 9 15 . 1 3 . 7 1 1 . . . 9 13 1 . 1 Terminals 59 | . 8 . 9 . 8 9 . . . . 6 . . . . . 4 13 1 . 1 Fabricators 7 | . . . . . . 4 . . . . 1 . . . . . 2 . . . . Repair Stations 3 | . . . 1 . . 1 . . . . . . . . . . 1 . . . . Recycling Units 2 | . 1 . . . . 1 . . . . . . . . . . . . . . . Scanalyzers 3 | . . . 2 . . . . . . . . . . . . . 1 . . . . Garrison Access 2 | . . . . . 1 . . . . . . . . . . . 1 . . . . Total Hacks 242 | . 31 . 35 . 27 36 . 1 18 . 19 1 1 . . . 38 29 3 . 3 Successful 132 | . 15 . 15 . 14 22 . 1 18 . 10 1 1 . . . 20 15 . . . Failed 108 | . 15 . 20 . 12 14 . . . . 9 . . . . . 18 14 3 . 3 Catastrophic 18 | . 1 . 4 . 1 4 . . . . 1 . . . . . 3 2 1 . 1 Database Lockouts 2 | . 1 . . . 1 . . . . . . . . . . . . . . . . Manual 133 | . 29 . 18 . 20 16 1 . . . 14 . . . . . 16 15 1 . 3 Terminals 169 | . 30 . 27 . 25 19 . . . . 16 . . . . . 17 29 3 . 3 Fabricators 21 | . . . . . . 10 . . . . 3 . . . . . 8 . . . . Repair Stations 11 | . . . 3 . . 4 . . . . . . . . . . 4 . . . . Recycling Units 4 | . 1 . . . . 3 . . . . . . . . . . . . . . . Scanalyzers 12 | . . . 5 . . . . . . . . . . . . . 7 . . . . Garrison Access 4 | . . . . . 2 . . . . . . . . . . . 2 . . . . Terminal Hacks 75 | . 12 . 9 . 7 6 . 1 18 . 5 1 1 . . . 4 11 . . . Record 2 | . . . . . . . . . 2 . . . . . . . . . . . . Part Schematic 16 | . 1 . 1 . . 1 . . 10 . 1 . . . . . 2 . . . . Robot Schematic 4 | . 1 . . . . . . . 3 . . . . . . . . . . . . Robot Analysis 9 | . 6 . 1 . 2 . . . . . . . . . . . . . . . . Prototype ID Bank 3 | . . . . . . . . . 3 . . . . . . . . . . . . Open Door 10 | . . . . . . . . 1 . . . 1 1 . . . . 7 . . . Branch Access Points 3 | . . . . . 1 1 . . . . 1 . . . . . . . . . . Terminal Index 4 | . 1 . 1 . 1 1 . . . . . . . . . . . . . . . Alert Level 4 | . 1 . 1 . . . . . . . 1 . . . . . . 1 . . . Unreport Threat 10 | . 1 . 3 . 1 2 . . . . . . . . . . 1 2 . . . Locate Traps 9 | . 1 . 2 . 1 1 . . . . 2 . . . . . 1 1 . . . Hauler Manifests 1 | . . . . . 1 . . . . . . . . . . . . . . . . Fabricator Hacks 10 | . . . . . . 4 . . . . 1 . . . . . 5 . . . . Network Status 1 | . . . . . . 1 . . . . . . . . . . . . . . . Load Schematic 7 | . . . . . . 3 . . . . 1 . . . . . 3 . . . . Build 2 | . . . . . . . . . . . . . . . . . 2 . . . . Repair Station Hacks 10 | . . . 2 . . 4 . . . . . . . . . . 4 . . . . Scan Component 5 | . . . 1 . . 2 . . . . . . . . . . 2 . . . . Repair 5 | . . . 1 . . 2 . . . . . . . . . . 2 . . . . Recycling Unit Hacks 1 | . . . . . . 1 . . . . . . . . . . . . . . . Report Inventory 1 | . . . . . . 1 . . . . . . . . . . . . . . . Scanalyzer 5 | . . . 2 . . . . . . . . . . . . . 3 . . . . Insert Component 4 | . . . 2 . . . . . . . . . . . . . 2 . . . . Analyze 1 | . . . . . . . . . . . . . . . . . 1 . . . . Garrison Access Hacks 2 | . . . . . 1 . . . . . . . . . . . 1 . . . . Seal Access 2 | . . . . . 1 . . . . . . . . . . . 1 . . . . Unauthorized Hacks 29 | . 3 . 2 . 6 7 . . . . 4 . . . . . 3 4 . . . Terminals 23 | . 3 . 2 . 6 3 . . . . 4 . . . . . 1 4 . . . Assimilate 2 | . . . . . . . . . . . 1 . . . . . . 1 . . . Botnet 18 | . 2 . 2 . 5 3 . . . . 2 . . . . . 1 3 . . . Operators 3 | . 1 . . . 1 . . . . . 1 . . . . . . . . . . Fabricators 5 | . . . . . . 3 . . . . . . . . . . 2 . . . . Recompile 5 | . . . . . . 3 . . . . . . . . . . 2 . . . . Repair Stations . | . . . . . . . . . . . . . . . . . . . . . . Recycling Units 1 | . . . . . . 1 . . . . . . . . . . . . . . . Recyclers 1 | . . . . . . 1 . . . . . . . . . . . . . . . Scanalyzers . | . . . . . . . . . . . . . . . . . . . . . . Garrison Access . | . . . . . . . . . . . . . . . . . . . . . . Data Cores Recovered 2 | . . . . . . . . . . . 1 . . . . . . 1 . . . Used . | . . . . . . . . . . . . . . . . . . . . . . Hacking Detections 63 | . 8 . 11 . 8 13 . . . . 7 . . . . . 7 7 1 . 1 Full Trace Events 12 | . 3 . 3 . . 1 . . . . 1 . . . . . 2 1 . . 1 Feedback Events 2 | . . . . . . . . . . . . . . . . . . 1 . . 1 Corruption 1 | . . . . . . . . . . . . . . . . . . . . . 1 Hackware Fried 1 | . . . . . . . . . . . . . . . . . . 1 . . . Feedback Blocked . | . . . . . . . . . . . . . . . . . . . . . . Robot Schematics Acquired 6 | . 1 . . . . . . . 3 . . . . 2 . . . . . . . Robots Built . | . . . . . . . . . . . . . . . . . . . . . . Authchips . | . . . . . . . . . . . . . . . . . . . . . . Time . | . . . . . . . . . . . . . . . . . . . . . . Total Robot Build Rating . | . . . . . . . . . . . . . . . . . . . . . . Part Schematics Acquired 32 | . 1 . 1 . . 1 . . 10 . 1 . . 15 . . 3 . . . . Parts Built 4 | . . . . . . . . . . . . . . . . . 4 . . . . Authchips 2 | . . . . . . . . . . . . . . . . . 2 . . . . Time 89 | . . . . . . . . . . . . . . . . . 89 . . . . Total Part Build Rating 18 | . . . . . . . . . . . . . . . . . 18 . . . . Parts Repaired 5 | . . . 1 . . 2 . . . . . . . . . . 2 . . . . Time 328 | . . . 26 . . 140 . . . . . . . . . . 162 . . . . Parts Recycled . | . . . . . . . . . . . . . . . . . . . . . . Recycled Matter . | . . . . . . . . . . . . . . . . . . . . . . Retrieved Matter . | . . . . . . . . . . . . . . . . . . . . . . Retrieved Components . | . . . . . . . . . . . . . . . . . . . . . . Parts Scanalyzed 2 | . . . 1 . . . . . . . . . . . . . 1 . . . . Part Schematics Acquired 1 | . . . . . . . . . . . . . . . . . 1 . . . . Parts Damaged 1 | . . . . . . . . . . . . . . . . . 1 . . . . Bothacking | -11 -10 -10 -9 -9 -8 -7 -7 -7 -7 -6 -6 -6 -6 -6 -6 -5 -5 -5 -5 -5 -5 ------------ Run | Yrd Mat Min Mat Min Mat Fac Low Low Dat Pro Fac Low Low Zio Dee Pro Fac Ext Cet Arc Hub Used RIF Installer . | . . . . . . . . . . . . . . . . . . . . . . Robots Hacked 3 | . . . . . . . . . 1 . . . . . 1 . . 1 . . . Non-combat 1 | . . . . . . . . . . . . . . . . . . 1 . . . Combat 2 | . . . . . . . . . 1 . . . . . 1 . . . . . . Robot Hacks Applied 3 | . . . . . . . . . 1 . . . . . 1 . . 1 . . . parse_system 3 | . . . . . . . . . 1 . . . . . 1 . . 1 . . . Relay Couplers Released . | . . . . . . . . . . . . . . . . . . . . . . Fabnet Peak Effective % . | . . . . . . . . . . . . . . . . . . . . . . Robots Rewired 14 | . . . . . . . . . . . . . . . . . . 14 . . . Allies Hacked . | . . . . . . . . . . . . . . . . . . . . . . Hacks Repelled . | . . . . . . . . . . . . . . . . . . . . . . Allies | -11 -10 -10 -9 -9 -8 -7 -7 -7 -7 -6 -6 -6 -6 -6 -6 -5 -5 -5 -5 -5 -5 -------- Run | Yrd Mat Min Mat Min Mat Fac Low Low Dat Pro Fac Low Low Zio Dee Pro Fac Ext Cet Arc Hub Total Allies 38 | . . 1 . . . . . . . . 1 . . . 1 . . 30 5 . . Largest Group 17 | . . 1 . . . . . . . . 1 . . . 1 . . 17 15 10 . Highest-Rated Group 742 | . . 31 . . . . . . . . 26 . . . 119 . . 602 742 599 . Highest-Rated Ally 159 | . . 31 . . . . . . . . 26 . . . 119 . . 159 159 96 . Total Orders 6 | . . . . . . . . . . . 2 . . . . . . 4 . . . STAY 3 | . . . . . . . . . . . 1 . . . . . . 2 . . . FOLLOW 3 | . . . . . . . . . . . 1 . . . . . . 2 . . . Ally Attacks 289 | . . 9 . . . . . . . . . . . . 34 . . 142 79 25 . Total Damage 8140 | . . 126 . . . . . . . . . . . . 1577 . . 2669 2762 1006 . Kills 49 | . . 3 . . . . . . . . . . . . 14 . . 16 10 6 . Allies Corrupted 1 | . . . . . . . . . . . 1 . . . . . . . . . . Allies Melted . | . . . . . . . . . . . . . . . . . . . . . . Intel | -11 -10 -10 -9 -9 -8 -7 -7 -7 -7 -6 -6 -6 -6 -6 -6 -5 -5 -5 -5 -5 -5 ------- Run | Yrd Mat Min Mat Min Mat Fac Low Low Dat Pro Fac Low Low Zio Dee Pro Fac Ext Cet Arc Hub Robot Analysis Total 143 | . 6 . 1 . 2 . . . 134 . . . . . . . . . . . . Derelict Logs Recovered 8 | . . 2 . 2 . . . . . . . . 1 1 . 2 . . . . . Drone Launches . | . . . . . . . . . . . . . . . . . . . . . . Drone Recoveries . | . . . . . . . . . . . . . . . . . . . . . . Exploration | -11 -10 -10 -9 -9 -8 -7 -7 -7 -7 -6 -6 -6 -6 -6 -6 -5 -5 -5 -5 -5 -5 ------------- Run | Yrd Mat Min Mat Min Mat Fac Low Low Dat Pro Fac Low Low Zio Dee Pro Fac Ext Cet Arc Hub Turns Passed 33551 | 88 1983 1318 3215 856 1884 4216 726 1196 1028 525 1079 985 1388 1831 4350 978 1758 2555 415 802 375 Spaces Moved 13161 | 27 913 678 1310 380 720 1539 280 465 422 296 436 402 422 1015 1731 437 543 784 161 81 119 Core 1 | . . . . . . . . . . . . . . . . . . . . . 1 Treads 389 | . 100 . 1 . 1 1 . . . . . . 286 . . . . . . . . Legs 3162 | 27 13 . . . . . . . . . . . . . 998 437 543 784 161 81 118 Wheels 9609 | . 800 678 1309 380 719 1538 280 465 422 296 436 402 136 1015 733 . . . . . . Hover . | . . . . . . . . . . . . . . . . . . . . . . Flight . | . . . . . . . . . . . . . . . . . . . . . . Fastest Speed 120 | 120 120 175 175 175 190 190 240 240 160 160 160 235 235 160 160 210 210 210 240 240 210 Average Speed 203 | 120 172 175 179 175 190 213 252 240 212 160 202 235 300 174 196 210 225 240 240 240 256 Slowest Speed 2650 | 120 175 175 320 175 320 560 255 255 255 160 235 235 332 175 300 210 240 330 240 240 2650 Overloaded Moves . | . . . . . . . . . . . . . . . . . . . . . . Propulsion Burnouts . | . . . . . . . . . . . . . . . . . . . . . . Robots Hopped 2 | . . . . . . . . . . . . 2 . . . . . . . . . Cave-ins Triggered . | . . . . . . . . . . . . . . . . . . . . . . Exploration Rate (%) 60 | 3 99 88 97 74 59 44 43 52 80 56 18 56 72 82 90 60 17 85 71 66 27 Regions Visited 21 Branch Regions 15 Pre-discovered Areas 26 | . . . . 1 . . . . 23 . . . . 2 . . . . . . . Known Exits Taken 11 | . . . . . . 1 . . . . 1 1 1 1 1 1 1 1 1 1 . Unknown Exits Taken 10 | 1 1 1 1 1 1 . 1 1 1 1 . . . . . . . . . . . Scrap Searched 21 | . . 1 . 1 . . 2 3 . 4 . 3 4 2 . 1 . . . . . Spaces Dug 144 | . . . . . 1 17 . . . . 21 . . 2 1 . 88 1 . . 13 Terrain Destroyed 737 | . . . 9 26 5 22 51 93 . 2 71 53 34 2 54 6 261 25 3 . 20 Melee 32 | . . . . . 1 17 . . . . 11 . . 2 1 . . . . . . Projectile 141 | . . . 9 . 4 5 . 5 . 2 14 3 . . 1 6 44 25 3 . 20 AOE 563 | . . . . 26 . . 51 87 . . 46 50 34 . 52 . 217 . . . . Terrain Rammed . | . . . . . . . . . . . . . . . . . . . . . . Walls Destroyed . | . . . . . . . . . . . . . . . . . . . . . . Machines Disabled . | . . . . . . . . . . . . . . . . . . . . . . Actions | -11 -10 -10 -9 -9 -8 -7 -7 -7 -7 -6 -6 -6 -6 -6 -6 -5 -5 -5 -5 -5 -5 --------- Run | Yrd Mat Min Mat Min Mat Fac Low Low Dat Pro Fac Low Low Zio Dee Pro Fac Ext Cet Arc Hub Total 18323 | 67 1213 753 1909 547 1044 2137 289 500 516 327 550 425 539 1054 2633 491 968 1315 187 688 171 Wait 3267 | 28 152 24 313 146 165 152 . . 42 11 37 8 109 . 692 52 310 401 21 598 6 Move 13136 | 26 912 677 1309 379 719 1538 279 464 421 295 435 397 421 1014 1730 436 542 783 160 80 119 Hop 2 | . . . . . . . . . . . . 2 . . . . . . . . . Pick Up 198 | 1 38 4 22 1 17 28 . 1 3 3 9 2 1 5 46 . 11 2 2 . 2 Fast Attach 73 | 1 5 1 11 . 6 22 1 3 2 2 6 . 1 2 7 . 3 . . . . Attach 102 | . 6 4 11 1 9 21 1 . 5 . 5 1 1 2 11 . 14 6 . . 4 Detach 92 | . 2 1 3 . 4 12 1 1 3 . 1 1 1 1 20 . 14 17 . 7 3 Swap 213 | . 14 9 41 5 20 62 2 4 7 2 4 4 1 2 13 . 8 10 1 1 3 Drop 200 | 2 20 5 30 2 15 35 . 5 1 4 13 1 1 7 55 . 1 . 1 . 2 Fire 746 | 9 64 27 133 13 88 129 4 18 . 10 25 9 3 . 51 3 65 62 2 2 29 Melee 140 | . . 1 . . 1 43 1 4 28 . 15 . . 21 2 . . 24 . . . Ram . | . . . . . . . . . . . . . . . . . . . . . . Kick . | . . . . . . . . . . . . . . . . . . . . . . Crush . | . . . . . . . . . . . . . . . . . . . . . . Escape Stasis 10 | . . . . . . . . . . . . . . . . . . 10 . . . Rewire . | . . . . . . . . . . . . . . . . . . . . . . Trap 141 | . . . 36 . . 95 . . 4 . . . . . 6 . . . . . . Miscellaneous 3 | . . . . . . . . . . . . . . . . . . . . . 3 Route ------- -11/Scrapyard -10/Materials (discovered 5 exits: *Mat x3 / [*Min] / [*Sub]) -10/Mines (discovered 3 exits: *Mat x2 / [*Exi]) -9/Materials (discovered 7 exits: *Mat x3 / [*Min x2] / *Sto x2) -9/Mines -8/Materials -7/Factory (discovered 3 exits: *Fac / *Low x2) -7/Lower Caves -7/Lower Caves (discovered 2 exits: *Fac / *Dat) -7/Data Miner -6/Proximity Caves -6/Factory (discovered 4 exits: *Fac x2 / *Low x2) -6/Lower Caves -6/Lower Caves (discovered 2 exits: *Fac / *Zio) -6/Zion (discovered 2 exits: *Dee / [*Pro]) -6/Deep Caves -5/Proximity Caves -5/Factory (discovered 3 exits: *Upp x2 / *Ext) -5/Extension (discovered 2 exits: [*Fac] / *Cet) -5/Cetus (discovered 2 exits: [*Fac] / *Arc) -5/Archives -5/Hub_04(d) (discovered 1 exit: [*Fac]) History --------- Turn | Location | Event 1 | -11/Scrapyard | Discovered new exit (range 2) 89 | -11/Scrapyard | Entered Materials 325 | -10/Materials | Build established: Mutant 899 | -10/Materials | Discovered new exit (range 14) 1055 | -10/Materials | Discovered new exit (range 15) 1517 | -10/Materials | Central database locked down 1587 | -10/Materials | Discovered new exit (range 12) 1613 | -10/Materials | Core integrity fell below 50% 1621 | -10/Materials | Discovered new exit (range 10) 1814 | -10/Materials | Discovered new exit (range 7) 2072 | -10/Materials | Entered Mines 2249 | -10/Mines | Deemed a non-threat by the Exiles lab entrance 2249 | -10/Mines | Discovered new exit (range 5) 2310 | -10/Mines | Received a Mining Laser from a helpful Derelict 2359 | -10/Mines | Excavation squad dispatched 2359 | -10/Mines | A large section of the Mines collapsed 2518 | -10/Mines | Found a damaged Exp. Sensor Array with a note attached 2663 | -10/Mines | Found Prototype Device 2915 | -10/Mines | Core integrity fell below 20% 2983 | -10/Mines | Learned Materials emergency access door positions 3015 | -10/Mines | Discovered new exit (range 15) 3143 | -10/Mines | Discovered new exit (range 6) 3390 | -10/Mines | Entered Materials 3390 | -9/Materials | Evolved 2 slots: Utility x2 3391 | -9/Materials | Identified exit to Storage 3683 | -9/Materials | Identified Exp. Sensor Array 3706 | -9/Materials | Build established: Scavenger-Mutant 3989 | -9/Materials | Discovered new exit (range 10) 4049 | -9/Materials | Repaired Seismic Detector 4545 | -9/Materials | Core integrity fell below 50% 4617 | -9/Materials | Discovered exit to Storage (range 13) 5000 | -9/Materials | Discovered new exit (range 8) 5178 | -9/Materials | Discovered new exit (range 16) 5214 | -9/Materials | Discovered new exit (range 9) 5606 | -9/Materials | Discovered new exit (range 16) 6082 | -9/Materials | Core integrity fell below 20% 6605 | -9/Materials | Entered Mines 6606 | -9/Mines | Assembled infested the area 6656 | -9/Mines | Learned location of Zion (-6) 7330 | -9/Mines | Discovered new exit (range 16) 7382 | -9/Mines | Learned Materials emergency access door positions 7461 | -9/Mines | Entered Materials 7461 | -8/Materials | Evolved 2 slots: Utility x1, Weapon x1 8036 | -8/Materials | Build established: Tank 8209 | -8/Materials | Central database locked down 8501 | -8/Materials | Garrison activated, responded to threat 8672 | -8/Materials | Lost 4 parts (2u2w) 8674 | -8/Materials | Core integrity fell below 50% 8955 | -8/Materials | Discovered new exit (range 11) 9345 | -8/Materials | Entered Factory 9345 | -7/Factory | Evolved 2 slots: Utility x2 9823 | -7/Factory | Build established: Scavenger-Mutant 10169 | -7/Factory | Build established: Scavenger-Tank 10831 | -7/Factory | Build established: Trapper-Tank 11030 | -7/Factory | Lost 3 parts (2u1w) 11159 | -7/Factory | Found Prototype Launcher 11159 | -7/Factory | Identified Rocket Array 11168 | -7/Factory | Found Rocket Array 11504 | -7/Factory | Discovered new exit (range 13) 11673 | -7/Factory | Identified exit to Lower Caves 12262 | -7/Factory | Repaired Autogun? 12417 | -7/Factory | Repaired Exp. Sensor Array? 12475 | -7/Factory | Build established: Trapper-Mutant 13561 | -7/Factory | Entered Lower Caves 13889 | -7/Lower Caves | Build established: Trapper-Tank 14088 | -7/Lower Caves | Discovered new exit (range 5) 14201 | -7/Lower Caves | Acquired the password to a Derelict Tinkerer's latest research 14287 | -7/Lower Caves | Entered another Lower Caves area 14367 | -7/Lower Caves | Discovered new exit (range 9) 14504 | -7/Lower Caves | Build established: Trapper-Mutant 15084 | -7/Lower Caves | Attracted the attention of an 0b10 checkpoint 15117 | -7/Lower Caves | Discovered new exit (range 12) 15165 | -7/Lower Caves | Attacked by a faux Warlord 15399 | -7/Lower Caves | Ambushed by research squad 15483 | -7/Lower Caves | Entered Data Miner 15483 | -7/Data Miner | Discovered new exit (range 6) 15532 | -7/Data Miner | Met Data Miner 15583 | -7/Data Miner | Learned location of Section 7 (-2) 15583 | -7/Data Miner | Acquired the access code to Warlord's prototype stash 15621 | -7/Data Miner | Received God Mode back door access code from Data Miner 15706 | -7/Data Miner | Build established: Trapper-Skirmisher 16039 | -7/Data Miner | Destroyed Data Miner 16041 | -7/Data Miner | Interfaced with the Data Conduit 16511 | -7/Data Miner | Entered Proximity Caves 16610 | -6/Proximity Caves | Core integrity fell below 50% 16643 | -6/Proximity Caves | Build established: Tank 17022 | -6/Proximity Caves | Discovered new exit (range 4) 17036 | -6/Proximity Caves | System corruption reached 10% 17036 | -6/Proximity Caves | Entered Factory 17036 | -6/Factory | Evolved 2 slots: Power x1, Utility x1 17037 | -6/Factory | Loaded intel: 295 machine locations 17083 | -6/Factory | Identified exit to Lower Caves 17394 | -6/Factory | Build established: Scavenger-Mutant 17416 | -6/Factory | Discovered new exit (range 16) 17599 | -6/Factory | Discovered new exit (range 7) 18088 | -6/Factory | Garrison activated, responded to threat 18115 | -6/Factory | Entered Lower Caves 18608 | -6/Lower Caves | Build established: Scavenger-Skirmisher 18994 | -6/Lower Caves | Discovered new exit (range 15) 19097 | -6/Lower Caves | Identified exit to Lower Caves 19100 | -6/Lower Caves | Entered another Lower Caves area 19133 | -6/Lower Caves | Discovered new exit (range 16) 19565 | -6/Lower Caves | Encountered a Warlord checkpoint 19718 | -6/Lower Caves | Build established: Skirmisher 20355 | -6/Lower Caves | Learned location of 1 exit from Factory 20465 | -6/Lower Caves | Discovered new exit (range 8) 20485 | -6/Lower Caves | Identified exit to Zion 20488 | -6/Lower Caves | Entered Zion 20615 | -6/Zion | Discovered new exit (range 13) 21014 | -6/Zion | Given the Hacking Drone Bay 21589 | -6/Zion | Build established: Assassin 22127 | -6/Zion | Found Prototype Special Weapon 22127 | -6/Zion | Identified RU-N14's Throwing Claymores 22134 | -6/Zion | Found RU-N14's Throwing Claymores 22310 | -6/Zion | Discovered new exit (range 5) 22312 | -6/Zion | Saw the warning signs outside the Deep Caves entrance 22316 | -6/Zion | Identified exit to Deep Caves 22319 | -6/Zion | Entered Deep Caves 22321 | -6/Deep Caves | Met 5H-AD0 22581 | -6/Deep Caves | Z-Facility disabled 22663 | -6/Deep Caves | Attacked by Z-Imprinter 22667 | -6/Deep Caves | Allies destroyed Z-Imprinter 22702 | -6/Deep Caves | Found Zio. Weapon Casing 22716 | -6/Deep Caves | Found Prototype Device 22716 | -6/Deep Caves | Identified Zio. Metafield Generator 22729 | -6/Deep Caves | Found Zio. Weapon Casing 22770 | -6/Deep Caves | Build established: Tank 23021 | -6/Deep Caves | Found Prototype Protection 23031 | -6/Deep Caves | Found Prototype Protection 23031 | -6/Deep Caves | Identified Zio. Heavy Carapace (x2) 23638 | -6/Deep Caves | Spotted AG-77819 23674 | -6/Deep Caves | Destroyed AG-77819 23757 | -6/Deep Caves | Spotted AG-39214 23799 | -6/Deep Caves | Destroyed AG-39214 23804 | -6/Deep Caves | Found GOLEM Unit 23823 | -6/Deep Caves | Lost 3 parts (3u) 24091 | -6/Deep Caves | Build established: Scavenger-Mutant 24351 | -6/Deep Caves | Triggered Deep Caves wall 24351 | -6/Deep Caves | Spotted AS-22487 24351 | -6/Deep Caves | Spotted AS-60393 24355 | -6/Deep Caves | Destroyed AS-60393 24361 | -6/Deep Caves | Destroyed AS-22487 24385 | -6/Deep Caves | Destroyed 35 combat bots 24386 | -6/Deep Caves | Exposed GOLEM chamber 24390 | -6/Deep Caves | Found GOLEM Unit 24395 | -6/Deep Caves | Found GOLEM Unit 24400 | -6/Deep Caves | Found GOLEM Unit 24517 | -6/Deep Caves | Found GOLEM Unit 24745 | -6/Deep Caves | Build established: Golem 25060 | -6/Deep Caves | Discovered new exit (range 7) 25846 | -6/Deep Caves | Found GOLEM Unit 26193 | -6/Deep Caves | Build established: Tank 26580 | -6/Deep Caves | Build established: Skirmisher 26667 | -6/Deep Caves | Identified exit to Proximity Caves 26669 | -6/Deep Caves | Entered Proximity Caves 27592 | -5/Proximity Caves | Discovered new exit (range 14) 27638 | -5/Proximity Caves | Identified exit to Factory 27647 | -5/Proximity Caves | Entered Factory 27647 | -5/Factory | Evolved 2 slots: Power x1, Utility x1 27648 | -5/Factory | Identified exit to Upper Caves 27649 | -5/Factory | Identified exit to Extension 27650 | -5/Factory | Loaded intel: 237 machine locations 28010 | -5/Factory | Build established: Hacker-Tank 28046 | -5/Factory | Repaired Broken Exp. Sensor Array 28077 | -5/Factory | Repaired Structural Scanner 28369 | -5/Factory | Destroyed 7 combat bots 28600 | -5/Factory | Fabricated Weapon Mount (x2) 28628 | -5/Factory | Build established: Hacker-Mutant 28651 | -5/Factory | Fabricated Powered Armor (x2) 28947 | -5/Factory | Intercept squad dispatched 28972 | -5/Factory | Spotted Tracker 28986 | -5/Factory | Destroyed Tracker 29039 | -5/Factory | Spotted Combat Programmer 29058 | -5/Factory | Destroyed Combat Programmer 29143 | -5/Factory | Destroyed 7 combat bots 29261 | -5/Factory | Build established: Hacker-Golem 29405 | -5/Factory | Entered Extension 29406 | -5/Extension | Loaded intel: 38 machine locations 29806 | -5/Extension | Rescued a captive Derelict 29806 | -5/Extension | Rescued a captive Derelict 30404 | -5/Extension | Rescued a captive Derelict 30405 | -5/Extension | Rescued a captive Derelict 30439 | -5/Extension | Rescued a captive Derelict 30440 | -5/Extension | Rescued a captive Derelict 30613 | -5/Extension | Rescued a captive Derelict 30614 | -5/Extension | Rescued a captive Derelict 30858 | -5/Extension | Build established: Commander-Golem 30930 | -5/Extension | Disrupted transfer network 30954 | -5/Extension | Destroyed B-75 Beast 31015 | -5/Extension | Spotted B-75 Beast 31064 | -5/Extension | Lost 5 allies 31087 | -5/Extension | Destroyed B-75 Beast 31109 | -5/Extension | Lost 3 parts (2u1w) 31338 | -5/Extension | Rescued a captive Derelict 31346 | -5/Extension | Rescued a captive Derelict 31406 | -5/Extension | Rescued a captive Derelict 31407 | -5/Extension | Rescued a captive Derelict 31508 | -5/Extension | Lost 3 allies 31516 | -5/Extension | Rescued A7 31560 | -5/Extension | Rescued a captive Derelict 31586 | -5/Extension | Rescued a captive Derelict 31799 | -5/Extension | Mak. Hacking Suite fried by hacking feedback 31892 | -5/Extension | Discovered new exit (range 10) 31894 | -5/Extension | Discovered new exit (range 6) 31927 | -5/Extension | Identified exit to Cetus 31960 | -5/Extension | Entered Cetus 31960 | -5/Cetus | Accompanied by 15 allies (A7) 31961 | -5/Cetus | Loaded intel: 24 machine locations 31965 | -5/Cetus | Acquired a Cetus Manufacturing Module code from A7 31988 | -5/Cetus | Spotted Cetus Guard 31989 | -5/Cetus | Spotted Cetus Guard 31989 | -5/Cetus | Spotted Cetus Guard 32003 | -5/Cetus | Allies destroyed Cetus Guard 32007 | -5/Cetus | Allies destroyed Cetus Guard 32013 | -5/Cetus | Spotted Cetus Guard 32018 | -5/Cetus | Allies destroyed Cetus Guard 32019 | -5/Cetus | Allies destroyed Cetus Guard 32044 | -5/Cetus | Lost 3 allies 32117 | -5/Cetus | Escorted A7 to Cetus Mainframe 32165 | -5/Cetus | Started Cetus Manufacturing Module 32190 | -5/Cetus | Manufactured an Enhanced Grunt 32194 | -5/Cetus | Discovered new exit (range 16) 32215 | -5/Cetus | Manufactured an Enhanced Grunt 32240 | -5/Cetus | Manufactured an Enhanced Grunt 32250 | -5/Cetus | Spotted Cetus Guard 32253 | -5/Cetus | Spotted Cetus Guard 32253 | -5/Cetus | Spotted Cetus Guard 32259 | -5/Cetus | Spotted Cetus Guard 32265 | -5/Cetus | Manufactured an Enhanced Grunt 32266 | -5/Cetus | Allies destroyed Cetus Guard 32270 | -5/Cetus | Discovered new exit (range 16) 32272 | -5/Cetus | Allies destroyed Cetus Guard 32275 | -5/Cetus | Allies destroyed Cetus Guard 32276 | -5/Cetus | Extracted ID and sensor layout for unrecognized location from A7's data core 32279 | -5/Cetus | Allies destroyed Cetus Guard 32286 | -5/Cetus | Met Revision 17 32290 | -5/Cetus | Manufactured an Enhanced Grunt 32303 | -5/Cetus | Lost 7 allies 32358 | -5/Cetus | Identified exit to Archives 32375 | -5/Cetus | Entered Archives 32375 | -5/Archives | Accompanied by 10 allies 32376 | -5/Archives | Loaded intel: 8 machine locations 32402 | -5/Archives | Met Zhirov 32408 | -5/Archives | Reinforcements dispatched to Archives 32420 | -5/Archives | Discovered new exit (range 15) 32453 | -5/Archives | Reinforcements dispatched to Archives 32456 | -5/Archives | Identified exit to Hub_04(d) 32473 | -5/Archives | Zhirov detonated Archives 32504 | -5/Archives | Lost 9 allies 32773 | -5/Archives | Build established: Golem 33177 | -5/Archives | Entered Hub_04(d) 33178 | -5/Hub_04(d) | Loaded intel: 78 machine locations 33380 | -5/Hub_04(d) | Network Hub disabled 33453 | -5/Hub_04(d) | Spotted Lightning 33457 | -5/Hub_04(d) | Spotted Lightning 33458 | -5/Hub_04(d) | Spotted Lightning 33484 | -5/Hub_04(d) | Network Hub disabled 33484 | -5/Hub_04(d) | Discovered new exit (range 9) 33496 | -5/Hub_04(d) | Core integrity fell below 50% 33525 | -5/Hub_04(d) | System corruption reached 10% 33543 | -5/Hub_04(d) | Spotted Lightning 33543 | -5/Hub_04(d) | Spotted Lightning 33546 | -5/Hub_04(d) | Spotted Lightning 33551 | -5/Hub_04(d) | Core integrity fell below 20% 33552 | -5/Hub_04(d) | Destroyed by Lightning with EMDS Last Messages --------------- 33547_ U-05 Engineer lays Concrete. 33547_ EMDS Slug penetrates Wall. 33547_ Exp. Sensor Array destroyed. 33548_ U-05 Engineer lays Concrete. 33548_ Slug penetrates Wall. 33549_ U-05 Engineer lays Concrete. 33549_ EMDS Slug penetrates Lightning. 33550_ Wall collapses. 33550_ Y-64 Sentinel system terminally corrupted. 33550_ U-05 Engineer lays Concrete. 33550_ Penetrated by EMDS Slug. 33550_ Asb. Focal Cannon destroyed. 33550_ Penetrated by EMDS Slug. 33551_ U-05 Engineer lays Concrete. 33551_ Quantum Reactor destroyed. 33551_ EMDS Slug penetrates Wall. 33551_ Penetrated by EMDS Slug. 33551_ EMDS Slug penetrates Wall. 33552_ Penetrated by EMDS Slug. 33552_ Asb. Biocell Array destroyed. Map ----- +----------------------------------------------------+ | ?????""G""?"""?????????????????"?? | | ??????"?"??????????????????????"?? | | ??????"?"??"""?????"?????????"""?? | | ???????????????????T?????????????? | | "??????"""?"""?????"?????????????? | | "????????????????????????????????? | | "??????????????????????????"?"?""? | | ???????????????????????????"?"?""? | | ???????????????????????????"?"?""? | | ?????????????????????H??????????T? | | ?????????????????????????"?"?""? | | ?????????????"T??????????"?"?""? | | ?????????????""??????????"?"?""? | | #??????????????????????????????? | | #??????????????????????????????? | | #???????????????????????????? ?? | | #???????????????????????"""" #? | | #?????##????????????????"""" #? | | #?????# ??#####? ?????"""" #? | | #?????#! ??# ###??"""" #? | | #?????# ?# ? # #??? ?? | | #?????? + ??#;;" #??? ??? | | #????#" " # ###;;;"#??? ???? | | #???? " T # ###* ####g###### | | #??###" " %h h # # | | ++####"## ; %<%* @ i# # | | #"""""# =+## uih## ;h# ][!# | | # %=##! "#### ; [[!# | | # " =#%= "#??# h [! # | | " # [%%= * "###### # | | " "" ### =[% " " #! # | | """"" #?# " " " " # | | """" #?#####""" """"""""""" # | | """ #????# " """#### | | " #????# " " #? | | #????# " " # #? | | ########????# " " ##? | | ????????????# " " # #? | | ????????????# " " ###? | | ????????????# " " #??? | | ????????????# " " #??? | | ????????????# " " ?? | | ????????????# " " ###? | | ????????????# """"""""""""" #??? | | ????????????# ??? | | ????????????# ##?? | | ????????????##### # #### ####??? | | ????????????????## ##????# #?????? | | ??????????????????#???????##?????? | | ?????????????????????????????????? | +----------------------------------------------------+ Best States ------------- Heat Dissipation 72 Energy Generation 65 Energy Capacity 1800 Matter Stores 300 Matter Capacity 300 Sight Range 20 Robot Scan Range 20 Terrain Scan Range 16 Terrain Scan Density 110 EM Shielding 3 Armor Coverage 1600 Resistance: KI 15 Resistance: TH 15 Resistance: EX 15 Resistance: EM 15 Resistance: I 15 Resistance: S 15 Resistance: P 15 Utility Shielding 66 Weapon Shielding 100 Weapon Cycling 15 Melee Speed Boost 20 Phase Shifting 15 Evasion (%) 55 Targeting Accuracy 20 Recoil Reduction 2 Offensive Hacking 31 Defensive Hacking 12 Authchip Count 3 Trap Extractor Capacity 6 Item Schematics ----------------- Huge Storage Unit | -10/Materials | Hacked Trap Extractor | -9/Materials | Hacked Powered Armor | -7/Factory | Hacked Combat Drone Bay | -7/Data Miner | Free Lgt. Regenerative Plating | -7/Data Miner | Free Cld. Aerolev Unit | -7/Data Miner | Free Gravity Neutralizer | -7/Data Miner | Free Cld. Plasma Cannon | -7/Data Miner | Free Nuclear Pulse Array | -7/Data Miner | Free Lrn. Proton Cannon | -7/Data Miner | Free Antigrav System | -7/Data Miner | Free Imp. Shock Absorption System | -7/Data Miner | Free Adv. Focal Shield | -7/Data Miner | Free Weapon Mount | -6/Factory | Hacked 0b10 Decoder Chip [Generic] | -6/Zion | Archive Adv. Plasma Cannon | -6/Zion | Archive 0b10 Decoder Chip [Scout] | -6/Zion | Archive Hvy. Treads | -6/Zion | Archive Imp. System Restoration Module | -6/Zion | Archive Disruptor Cannon | -6/Zion | Archive Imp. Particle Charger | -6/Zion | Archive Phase Gun | -6/Zion | Archive Imp. Antigrav System | -6/Zion | Archive Hvy. Machine Gun | -6/Zion | Archive Imp. Weapon Cycler | -6/Zion | Archive Energy Well | -6/Zion | Archive Hvy. Flak Cannon | -6/Zion | Archive Imp. Coolant Injector | -6/Zion | Archive Tiamat Missile Launcher | -6/Zion | Archive Hyb. Deuterium Engine | -5/Factory | Scanalyzed Prc. Energy Filter | -5/Factory | Hacked Hyb. Antimatter Reactor | -5/Factory | Hacked Robot Schematics ------------------ M-13 Machinist | -10/Materials | Hacked S-27 Virus | -7/Data Miner | Free G-50 Soldier | -7/Data Miner | Free H-55 Commando | -7/Data Miner | Free R-06 Scavenger | -6/Zion | Archive H-66 Slayer | -6/Zion | Archive Fabricated ------------ Weapon Mount | x2 | -5/Factory | Authchip Powered Armor | x2 | -5/Factory | Authchip Alien Tech Used ----------------- None Achievements -------------- None Challenges ------------ None Game ------ Seed GuidedAlertReplicator Manual? 0 Play Time 04:40:29 Cumulative 346.0 hours Start 2024.06.03 @ 01:25:19 End 2024.06.06 @ 20:27:13 Sessions 9 Manual Loads 0 Difficulty Rogue Special Mode None Game No. 208 Rogue 64 Adventurer 144 Explorer 0 Win Type - Total 4 Types 2/0/1/1/0/0/0/0/0 Lore% 67 Gallery% 79 Achievement% 64 Wizard Run 0 Options --------- Layout 0 ASCII 0 Keyboard 0 Movement Mouse Keybinds 0 Fullscreen 2 Font 20/SmallcapsGlow Map View 66x50 Zoom Use 0% Tactical HUD 1 Map Filters NONE Filters NONE Steam X RUN: ec3fb52b-1a45-4c18-b73a-03d4a85e4cc7